fUST/lending_fUST_20260330
["ID","MTS","AMOUNT","RATE_DAILY","PERIOD"]
[419070468,1774830646659,-1000.0,0.00010948,2]
[419070470,1774830646669,-500.0,0.00010959,2]
[419070472,1774830646679,-500.0,0.00010959,2]
[419070474,1774830646689,-243.37419801,0.00010959,2]
[419070476,1774830646699,-500.0,0.00010959,2]
[419070478,1774830646709,-357.48711975,0.00010959,2]
[419070481,1774830646723,-142.51288025,0.00010959,2]
[419070483,1774830646733,-500.0,0.00010959,2]
[419070485,1774830646743,-1114.77165158,0.00011224,2]
[419070487,1774830646752,-2000.0,0.00011224,2]
[419070489,1774830646762,-164.365576,0.0001132,2]
[419070491,1774830646771,-1500.0,0.00011439,2]
[419070493,1774830646780,-1500.0,0.00011496,2]
[419070495,1774830646790,-1500.0,0.00011496,2]
[419070497,1774830646800,-164.365576,0.00011886,2]
[419070499,1774830646809,-2000.0,0.00011987,2]
[419070501,1774830646818,-1000.0,0.00012044,2]
[419070503,1774830646827,-1000.0,0.00012044,2]
[419070505,1774830646837,-164.365576,0.00012452,2]
[419070507,1774830646846,-2500.0,0.00012535,2]
[419070509,1774830646855,-471.95975664,0.0001283,2]
[419070512,1774830646874,-1028.04024336,0.0001283,2]
[419070527,1774830646985,-164.365576,0.00013018,2]
[419070530,1774830646995,-1000.0,0.00013083,2]
[419070533,1774830647005,-679.05738914,0.00013378,2]
[419070535,1774830647015,-164.365576,0.00013584,2]
[419070537,1774830647025,-500.0,0.00013698,2]
[419070539,1774830647034,-500.0,0.00013698,2]
[419070541,1774830647043,-500.0,0.00013698,2]
[419070543,1774830647052,-500.0,0.00013698,2]
[419070545,1774830647061,-500.0,0.00013698,2]
[419070547,1774830647071,-500.0,0.00013698,2]
[419070549,1774830647081,-500.0,0.00013699,2]
[419070551,1774830647090,-500.0,0.00013699,2]
[419070553,1774830647099,-446.88067369,0.00013699,2]
[419070555,1774830647109,-500.0,0.00013699,2]
[419070557,1774830647118,-500.0,0.00013699,2]
[419070559,1774830647126,-500.0,0.00013699,2]
[419070561,1774830647135,-500.0,0.00013699,2]
[419070563,1774830647145,-1000.0,0.00013699,2]
[419070565,1774830647154,-164.365576,0.00014149,2]
[419070567,1774830647164,-1000.0,0.00014247,2]
[419070569,1774830647173,-1000.0,0.00014247,2]
[419070571,1774830647182,-1000.0,0.00014247,2]
[419070573,1774830647191,-1000.0,0.00014247,2]
[419070575,1774830647200,-1000.0,0.00014247,2]
[419070577,1774830647210,-1000.0,0.00014247,2]
[419070579,1774830647220,-164.365576,0.00014715,2]
[419070581,1774830647230,-1058.58565148,0.00014795,2]
[419070583,1774830647239,-1500.0,0.00014795,2]
[419070585,1774830647248,-1500.0,0.00014795,2]
[419070586,1774830647258,-1500.0,0.00014795,2]
[419070588,1774830647267,-1500.0,0.00014795,2]
[419070590,1774830647277,-1500.0,0.00014795,2]
[419070592,1774830647286,-175.974761,0.00015068,2]
[419070594,1774830647296,-164.365576,0.00015281,2]
[419070597,1774830647306,-811.12934352,0.00015342,2]
[419070599,1774830647316,-2000.0,0.00015342,2]
[419070600,1774830647328,-2000.0,0.00015342,2]
[419070602,1774830647338,-1232.94427383,0.00015342,2]
[419070604,1774830647348,-2000.0,0.00015342,2]
[419070606,1774830647357,-164.365576,0.00015847,2]
[419070608,1774830647366,-2500.0,0.0001589,2]
[419070610,1774830647376,-231.96195894,0.0001589,2]
[419070612,1774830647385,-2500.0,0.0001589,2]
[419070614,1774830647394,-500.0,0.00015999,2]
[419070615,1774830647404,-9640.66003945,0.00016,2]
[419070616,1774830647413,-164.365576,0.00016413,2]
[419070617,1774830647423,-1500.0,0.00016438,2]
[419070618,1774830647432,-2480.54616182,0.00016438,2]
[419070619,1774830647441,-3000.0,0.00016438,2]
[419070620,1774830647451,-500.0,0.00016548,2]
[419070621,1774830647460,-289.829118,0.00016549,2]
[419070622,1774830647471,-12140.65059728,0.00016549,2]
[419070623,1774830647483,-12451.04111692,0.00016549,2]
[419070624,1774830647492,-579.658236,0.00016549,2]
[419070625,1774830647502,-288.06735517,0.00016742,2]
[419070626,1774830647512,-164.365576,0.00016979,2]
[419070627,1774830647521,-3500.0,0.00016986,2]
[419070628,1774830647531,-4000.0,0.00017534,2]
[419070629,1774830647540,-164.365576,0.00017545,2]
[419070630,1774830647550,-500.0,0.00017729,2]
[419070631,1774830647559,-321.55007318,0.0001773,2]
[419070632,1774830647569,-571.64457454,0.00017735,2]
[419070633,1774830647578,-933.58782423,0.00017815,2]
[419070877,1774830665538,213.65,7.3e-05,2]
[419070878,1774830678347,-1232.9951853,8.874e-05,2]
[419071009,1774831832683,-565.876,7.405e-05,2]
[419071013,1774831832783,-4434.124,7.405e-05,2]
[419071014,1774831832793,-5000.0,7.48e-05,2]
[419071015,1774831832804,-5000.0,7.556e-05,2]
[419071016,1774831832814,-526.0,7.556e-05,2]
[419071017,1774831832825,-843.0,7.631e-05,2]
[419071018,1774831832835,-300.0,7.708e-05,2]
[419071019,1774831832845,-420.0,8.479e-05,2]
[419071020,1774831832855,-587.0,9.327e-05,2]
[419071021,1774831832865,-156.2,0.0001,2]
[419071022,1774831832875,-823.0,0.00010259,2]
[419071023,1774831832885,-5391.68359029,0.00011128,2]
[419071024,1774831832895,-8478.7877186,0.00011128,2]
[419071025,1774831832905,-1152.0,0.00011285,2]
[419071026,1774831832915,-1613.0,0.00012414,2]
[419071027,1774831832926,-1000.0,0.0001283,2]
[419071028,1774831832936,-303.41154501,0.00013378,2]
[419071029,1774831832946,-2258.0,0.00013655,2]
[419071030,1774831832956,-500.0,0.00013698,2]
[419071031,1774831832966,-678.03746417,0.00013699,2]
[419071032,1774831832979,-321.96253583,0.00013699,2]
[419071033,1774831832988,-500.0,0.00014072,2]
[419071034,1774831832997,-2358.63669644,0.00015021,2]
[419071035,1774831833025,-803.36330356,0.00015021,2]
[419071036,1774831833035,-25.03359503,0.00015779,2]
[419071037,1774831833047,-150.55568115,0.00015779,2]
[419071038,1774831833058,-500.0,0.00015879,2]
[419071039,1774831833067,-193.219412,0.0001588,2]
[419071040,1774831833076,-267.95407813,0.0001588,2]
[419071071,1774831838884,-328.89061464,0.00015663,2]
[419071072,1774831838896,-5000.0,0.00015721,2]
[419071073,1774831838909,-384.16143737,0.0001588,2]
[419071074,1774831838920,-160.0,0.0001628,3]
[419071075,1774831838930,-892.30145307,0.00016488,2]
[419071076,1774831838940,-159.0,0.000165,2]
[419071077,1774831838949,-4427.0,0.00016523,2]
[419071079,1774831838958,-160.0,0.00016542,4]
[419071080,1774831838968,-160.0,0.00016804,5]
[419071081,1774831838977,-160.0,0.00017065,6]
[419071082,1774831838986,-160.63564646,0.000171,2]
[419071083,1774831838996,-160.0,0.00017327,7]
[419071084,1774831839006,-160.0,0.00017589,8]
[419071085,1774831839016,-159.0,0.000177,2]
[419071086,1774831839026,-1000.0,0.00017815,2]
[419071087,1774831839036,-160.0,0.00017851,9]
[419071088,1774831839045,-161.54583454,0.00017851,5]
[419071089,1774831839055,-193.43414442,0.00017886,30]
[419071090,1774831839065,-348.31851728,0.00018037,30]
[419071091,1774831839075,-472.80041578,0.00018037,30]
[419071092,1774831839085,-677.92797756,0.00018037,30]
[419071093,1774831839095,-164.365576,0.00018111,2]
[419071094,1774831839104,-1235.0,0.00018175,2]
[419071095,1774831839114,-500.0,0.00018353,2]
[419071096,1774831839124,-500.0,0.00018354,2]
[419071097,1774831839134,-500.0,0.00018354,2]
[419071098,1774831839144,-500.0,0.00018354,2]
[419071099,1774831839153,-500.0,0.00018354,2]
[419071100,1774831839163,-500.0,0.00018354,2]
[419071101,1774831839173,-500.0,0.00018354,2]
[419071102,1774831839182,-500.0,0.00018354,2]
[419071103,1774831839192,-500.0,0.00018354,2]
[419071104,1774831839201,-500.0,0.00018354,2]
[419071105,1774831839210,-500.0,0.00018354,2]
[419071106,1774831839219,-500.0,0.00018354,2]
[419071107,1774831839229,-500.0,0.00018354,2]
[419071108,1774831839238,-500.0,0.00018354,2]
[419071109,1774831839248,-500.0,0.00018354,2]
[419071110,1774831839258,-500.0,0.00018354,2]
[419071111,1774831839268,-500.0,0.00018354,2]
[419071112,1774831839278,-500.0,0.00018354,2]
[419071113,1774831839288,-500.0,0.00018354,2]
[419071114,1774831839297,-500.0,0.00018354,2]
[419071115,1774831839306,-500.0,0.00018354,2]
[419071116,1774831839317,-500.0,0.00018354,2]
[419071117,1774831839327,-500.0,0.00018354,2]
[419071118,1774831839337,-500.0,0.00018354,2]
[419071119,1774831839347,-500.0,0.00018354,2]
[419071120,1774831839358,-145.81553652,0.00018354,2]
[419071577,1774831847156,-5000.0,0.0001817,2]
[419071578,1774831847167,-354.18446348,0.00018354,2]
[419071579,1774831847177,-508.40697098,0.00018354,2]
[419071580,1774831847187,-500.0,0.00018354,2]
[419071581,1774831847197,-444.23663847,0.00018354,2]
[419071582,1774831847210,-55.76336153,0.00018354,2]
[419071583,1774831847220,-500.0,0.00018354,2]
[419071584,1774831847229,-461.4064635,0.00018354,2]
[419071585,1774831847240,-500.0,0.00018354,2]
[419071586,1774831847249,-500.0,0.00018354,2]
[419071587,1774831847259,-500.0,0.00018354,2]
[419071588,1774831847270,-500.0,0.00018354,2]
[419071589,1774831847280,-500.0,0.00018354,2]
[419071590,1774831847290,-500.0,0.00018354,2]
[419071591,1774831847300,-305.94557716,0.00018354,2]
[419071779,1774833031959,-5000.0,7.449e-05,2]
[419071780,1774833031980,-2983.74080253,7.524e-05,2]
[419071781,1774833031991,-1848.69860382,7.6e-05,2]
[419071782,1774833032002,-527.0,7.6e-05,2]
[419071783,1774833032013,-5000.0,0.0001202,2]
[419071784,1774833032023,-300.0,0.0001214,2]
[419071785,1774833032034,-808.92888304,0.0001214,2]
[419071786,1774833032048,-285.07111696,0.0001214,2]
[419071787,1774833032058,-300.0,0.00012263,2]
[419071788,1774833032069,-300.0,0.00012263,2]
[419071789,1774833032079,-300.0,0.00012599,2]
[419071790,1774833032089,-583.67688304,0.000126,2]
[419071796,1774833032311,-265.40702912,0.000126,2]
[419071798,1774833032323,-150.91608784,0.000126,2]
[419071800,1774833032333,-148.93391216,0.000126,2]
[419071871,1774833038138,-5000.0,0.00012474,2]
[419071872,1774833038149,-851.06608784,0.000126,2]
[419071873,1774833038158,-1000.0,0.000126,2]
[419071874,1774833038167,-1000.0,0.000126,2]
[419071875,1774833038177,-1000.0,0.000126,2]
[419071876,1774833038187,-500.0,0.00013292,2]
[419071877,1774833038196,-500.0,0.00013292,2]
[419071878,1774833038206,-500.0,0.00013292,2]
[419071879,1774833038215,-156.05677293,0.00013292,2]
[419071880,1774833038224,-1000.0,0.00013699,2]
[419071881,1774833038234,-1000.0,0.00014651,2]
[419071882,1774833038244,-500.0105059,0.00014939,2]
[419071883,1774833038253,-3444.550384,0.00016108,2]
[419071884,1774833038262,-3444.550384,0.00016787,2]
[419071885,1774833038272,-175.58927615,0.00017004,2]
[419071886,1774833038281,-171.451696,0.00017104,2]
[419071887,1774833038290,-3444.550384,0.00017465,2]
[419071888,1774833038300,-222.76608665,0.00017708,2]
[419071889,1774833038309,-166.53892882,0.00017787,2]
[419071890,1774833038318,-280.0845909,0.00017787,2]
[419071891,1774833038328,-1957.856,0.00017787,2]
[419071892,1774833038339,-723.45671011,0.00017787,2]
[419071893,1774833038350,-2150.738,0.00017787,2]
[419071894,1774833038360,-2030.296672,0.00017842,2]
[419071895,1774833038370,-276.67518683,0.00017897,2]
[419071896,1774833038379,-10467.32205025,0.00018,2]
[419071897,1774833038388,-3444.550384,0.00018143,2]
[419071898,1774833038398,-500.0,0.00018265,2]
[419071899,1774833038407,-500.0,0.00018265,2]
[419071900,1774833038416,-500.0,0.00018265,2]
[419071901,1774833038426,-500.0,0.00018265,2]
[419071902,1774833038435,-500.0,0.00018265,2]
[419071903,1774833038445,-500.0,0.00018265,2]
[419071904,1774833038454,-500.0,0.00018265,2]
[419071905,1774833038463,-500.0,0.00018265,2]
[419071906,1774833038472,-500.0,0.00018265,2]
[419071907,1774833038482,-500.0,0.00018265,2]
[419071908,1774833038491,-500.0,0.00018265,2]
[419071909,1774833038502,-500.0,0.00018265,2]
[419071910,1774833038512,-500.0,0.00018265,2]
[419071911,1774833038521,-500.0,0.00018265,2]
[419071912,1774833038530,-500.0,0.00018265,2]
[419071913,1774833038539,-500.0,0.00018265,2]
[419071914,1774833038549,-500.0,0.00018265,2]
[419071915,1774833038558,-500.0,0.00018265,2]
[419071916,1774833038568,-496.65458927,0.00018265,2]
[419071917,1774833038577,-500.0,0.00018265,2]
[419071918,1774833038586,-500.0,0.00018265,2]
[419071919,1774833038596,-500.0,0.00018265,2]
[419071920,1774833038605,-600.8406971,0.00018265,2]
[419071921,1774833038614,-500.0,0.00018265,2]
[419071922,1774833038624,-500.0,0.00018265,2]
[419071923,1774833038633,-500.0,0.00018265,2]
[419071924,1774833038642,-500.0,0.00018265,2]
[419071925,1774833038652,-500.0,0.00018265,2]
[419071926,1774833038662,-500.0,0.00018265,2]
[419071927,1774833038671,-500.0,0.00018265,2]
[419071928,1774833038680,-500.0,0.00018265,2]
[419071929,1774833038689,-500.0,0.00018265,2]
[419071930,1774833038698,-500.0,0.00018265,2]
[419071931,1774833038707,-500.0,0.00018265,2]
[419071932,1774833038717,-500.0,0.00018265,2]
[419071933,1774833038726,-500.0,0.00018265,2]
[419071934,1774833038735,-500.0,0.00018265,2]
[419071935,1774833038745,-500.0,0.00018265,2]
[419071936,1774833038755,-500.0,0.00018265,2]
[419071937,1774833038764,-500.0,0.00018265,2]
[419071938,1774833038773,-500.0,0.00018265,2]
[419071939,1774833038782,-500.0,0.00018265,2]
[419071940,1774833038791,-500.0,0.00018265,2]
[419071941,1774833038800,-500.0,0.00018265,2]
[419071942,1774833038810,-500.0,0.00018265,2]
[419071943,1774833038819,-500.0,0.00018265,2]
[419071944,1774833038828,-500.0,0.00018265,2]
[419071945,1774833038837,-500.0,0.00018265,2]
[419071946,1774833038847,-500.0,0.00018265,2]
[419071947,1774833038856,-500.0,0.00018265,2]
[419071948,1774833038866,-500.0,0.00018265,2]
[419071949,1774833038875,-500.0,0.00018265,2]
[419071950,1774833038884,-500.0,0.00018265,2]
[419071951,1774833038893,-500.0,0.00018265,2]
[419071952,1774833038902,-500.0,0.00018265,2]
[419071953,1774833038911,-500.0,0.00018265,2]
[419071954,1774833038922,-500.0,0.00018265,2]
[419071955,1774833038931,-500.0,0.00018265,2]
[419071956,1774833038940,-500.0,0.00018265,2]
[419071957,1774833038949,-500.0,0.00018265,2]
[419071958,1774833038959,-500.0,0.00018265,2]
[419071959,1774833038968,-500.0,0.00018265,2]
[419071960,1774833038977,-500.0,0.00018265,2]
[419071961,1774833038986,-217.57971153,0.00018265,2]
[419071962,1774833038995,-500.0,0.00018265,2]
[419071963,1774833039004,-500.0,0.00018265,2]
[419071964,1774833039014,-24952.4059772,0.00018267,2]
[419071965,1774833039023,-217.3718385,0.00018267,2]
[419071966,1774833039032,-14380.6678822,0.00018267,2]
[419071967,1774833039041,-869.487354,0.00018267,2]
[419071968,1774833039051,-15453.9253419,0.00018267,2]
[419071969,1774833039060,-386.438824,0.00018267,2]
[419071970,1774833039069,-1956.3465465,0.00018267,2]
[419071971,1774833039078,-500.0,0.00018273,2]
[419071972,1774833039088,-500.0,0.00018273,2]
[419071973,1774833039097,-152.13351302,0.0001834,2]
[419071974,1774833039106,-163.07081219,0.0001834,2]
[419071975,1774833039116,-151.0,0.0001834,2]
[419071976,1774833039125,-151.0,0.0001834,2]
[419071977,1774833039136,-151.0,0.0001834,2]
[419071978,1774833039145,-151.0,0.0001834,2]
[419071979,1774833039154,-151.0,0.0001834,2]
[419071980,1774833039164,-151.0,0.0001834,2]
[419071981,1774833039173,-151.0,0.0001834,2]
[419071982,1774833039183,-151.0,0.0001834,2]
[419071983,1774833039192,-151.0,0.0001834,2]
[419071984,1774833039201,-151.0,0.0001834,2]
[419071985,1774833039210,-151.0,0.0001834,2]
[419071986,1774833039219,-151.0,0.0001834,2]
[419071987,1774833039228,-151.0,0.0001834,2]
[419071988,1774833039237,-151.0,0.0001834,2]
[419071989,1774833039247,-153.92783511,0.0001834,2]
[419071990,1774833039256,-151.0,0.00018352,2]
[419071991,1774833039265,-151.0,0.00018352,2]
[419071992,1774833039274,-223.887195,0.00018352,2]
[419071993,1774833039283,-223.887195,0.00018352,2]
[419071994,1774833039292,-223.887195,0.00018352,2]
[419071995,1774833039302,-223.887195,0.00018352,2]
[419071996,1774833039312,-223.887195,0.00018352,2]
[419071997,1774833039321,-223.887195,0.00018352,2]
[419071998,1774833039330,-223.887195,0.00018352,2]
[419071999,1774833039339,-223.887195,0.00018352,2]
[419072000,1774833039349,-214.881172,0.00018354,2]
[419072001,1774833039358,-223.887195,0.00018354,2]
[419072002,1774833039367,-223.887195,0.00018354,2]
[419072003,1774833039376,-223.887195,0.00018354,2]
[419072004,1774833039386,-223.887195,0.00018354,2]
[419072005,1774833039395,-1000.0,0.00018354,2]
[419072006,1774833039404,-1000.0,0.00018354,2]
[419072007,1774833039414,-1000.0,0.00018354,2]
[419072008,1774833039424,-1000.0,0.00018354,2]
[419072009,1774833039434,-1000.0,0.00018354,2]
[419072010,1774833039443,-1000.0,0.00018354,2]
[419072011,1774833039453,-1000.0,0.00018354,2]
[419072012,1774833039463,-1000.0,0.00018354,2]
[419072013,1774833039472,-1000.0,0.00018354,2]
[419072014,1774833039481,-1000.0,0.00018354,2]
[419072015,1774833039490,-1000.0,0.00018354,2]
[419072016,1774833039501,-1000.0,0.00018354,2]
[419072017,1774833039510,-1000.0,0.00018354,2]
[419072018,1774833039519,-1000.0,0.00018354,2]
[419072019,1774833039529,-1000.0,0.00018354,2]
[419072020,1774833039538,-1000.0,0.00018354,2]
[419072021,1774833039547,-1000.0,0.00018354,2]
[419072022,1774833039557,-410.75042359,0.00018354,2]
[419072023,1774833039567,-151.0,0.00018354,2]
[419072024,1774833039577,-163.71046071,0.00018354,2]
[419072025,1774833039586,-240.0,0.00018356,2]
[419072026,1774833039595,-500.0,0.00018373,2]
[419072027,1774833039605,-500.0,0.00018373,2]
[419072028,1774833039614,-500.0,0.00018373,2]
[419072029,1774833039623,-348.31851728,0.0001846,30]
[419072030,1774833039632,-472.80041578,0.0001846,30]
[419072031,1774833039642,-677.92797756,0.0001846,30]
[419072032,1774833039651,-168.974624,0.00018646,2]
[419072033,1774833039660,-223.887195,0.00018646,2]
[419072034,1774833039670,-223.887195,0.00018646,2]
[419072035,1774833039679,-223.887195,0.00018646,2]
[419072036,1774833039688,-223.887195,0.00018646,2]
[419072037,1774833039698,-162.773188,0.000187,2]
[419072038,1774833039707,-151.0,0.000187,2]
[419072039,1774833039716,-151.0,0.000187,2]
[419072040,1774833039726,-151.0,0.000187,2]
[419072041,1774833039735,-500.0,0.0001871,2]
[419072042,1774833039744,-500.0,0.0001871,2]
[419072043,1774833039754,-500.0,0.0001871,2]
[419072044,1774833039763,-500.0,0.0001871,2]
[419072045,1774833039772,-500.0,0.0001871,2]
[419072046,1774833039781,-500.0,0.0001871,2]
[419072047,1774833039791,-500.0,0.0001871,2]
[419072048,1774833039881,-468.94929079,0.0001871,2]
[419072049,1774833039891,-500.0,0.0001871,2]
[419072050,1774833039901,-500.0,0.0001871,2]
[419072051,1774833039911,-500.0,0.0001871,2]
[419072052,1774833039920,-500.0,0.0001871,2]
[419072053,1774833039929,-151.0,0.00018711,2]
[419072054,1774833039939,-151.0,0.00018711,2]
[419072055,1774833039948,-151.0,0.00018711,2]
[419072056,1774833039957,-169.120462,0.00018711,2]
[419072057,1774833039966,-223.887195,0.00018711,2]
[419072058,1774833039975,-223.887195,0.00018711,2]
[419072059,1774833039984,-223.887195,0.00018711,2]
[419072060,1774833039993,-223.88719781,0.00018711,2]
[419072061,1774833040003,-5000.0,0.00018711,2]
[419072062,1774833040012,-5000.0,0.00018711,2]
[419072063,1774833040021,-5000.0,0.00018711,2]
[419072064,1774833040030,-5000.0,0.00018711,2]
[419072065,1774833040039,-5000.0,0.00018711,2]
[419072066,1774833040049,-203.76691253,0.00018762,30]
[419072067,1774833040057,-215.54586856,0.00018762,60]
[419072068,1774833040067,-242.02099479,0.00018762,60]
[419072069,1774833040076,-500.0,0.00018773,2]
[419072070,1774833040086,-340.16313277,0.00018821,2]
[419072071,1774833040095,-3444.550384,0.00018821,2]
[419072072,1774833040104,-500.73880733,0.00018829,2]
[419072073,1774833040114,-348.31851728,0.00018883,60]
[419072074,1774833040123,-472.80041578,0.00018883,60]
[419072075,1774833040133,-677.92797756,0.00018883,60]
[419072076,1774833040143,-151.0,0.00018883,2]
[419072078,1774833040152,-151.0,0.00018883,2]
[419072080,1774833040161,-500.0,0.00018913,2]
[419072081,1774833040170,-500.0,0.00018913,2]
[419072082,1774833040180,-500.0,0.00018913,2]
[419072083,1774833040189,-500.0,0.00018913,2]
[419072084,1774833040198,-1000.0,0.00018921,2]
[419072085,1774833040207,-1000.0,0.00018921,2]
[419072086,1774833040216,-500.0,0.00018921,2]
[419072087,1774833040226,-200.0,0.00019178,2]
[419072088,1774833040236,-200.0,0.00019178,2]
[419072089,1774833040245,-2703.652096,0.00019178,2]
[419072090,1774833040255,-2703.652096,0.00019178,2]
[419072091,1774833040264,-2703.652096,0.00019178,2]
[419072093,1774833040274,-2703.652096,0.00019178,2]
[419072095,1774833040283,-2703.652096,0.00019178,2]
[419072098,1774833040293,-2703.652096,0.00019178,2]
[419072100,1774833040302,-2703.652096,0.00019178,2]
[419072102,1774833040311,-2703.652096,0.00019178,2]
[419072104,1774833040321,-2703.652096,0.00019178,2]
[419072106,1774833040331,-2703.652096,0.00019178,2]
[419072108,1774833040340,-2703.652096,0.00019178,2]
[419072110,1774833040349,-2703.652096,0.00019178,2]
[419072112,1774833040359,-2703.652096,0.00019178,2]
[419072114,1774833040368,-2703.652096,0.00019178,2]
[419072116,1774833040378,-2703.652096,0.00019178,2]
[419072118,1774833040387,-2703.652096,0.00019178,2]
[419072120,1774833040397,-2703.652096,0.00019178,2]
[419072121,1774833040407,-2703.652096,0.00019178,2]
[419072123,1774833040416,-2672.9229441,0.00019178,2]
[419072410,1774833043215,-30.7291519,0.00019178,2]
[419072412,1774833043230,-388.20942428,0.00019178,2]
[419072666,1774833046068,-1537.18275877,0.00018986,2]
[419072669,1774833046083,-3462.81724123,0.00018986,2]
[419072671,1774833046094,-2315.44267372,0.00019178,2]
[419072673,1774833046105,-348.31851728,0.00019306,60]
[419072675,1774833046116,-472.80041578,0.00019306,60]
[419072677,1774833046127,-677.92797756,0.00019306,60]
[419072680,1774833046138,-1000.32933809,0.00019321,2]
[419072682,1774833046151,-1633.3175878,0.00019468,2]
[419072684,1774833046162,-3444.550384,0.00019499,2]
[419072686,1774833046174,-733.0,0.00019519,5]
[419072688,1774833046185,-452.0,0.00019519,5]
[419072690,1774833046196,-215.54586856,0.00019638,60]
[419072693,1774833046207,-242.02099479,0.00019638,60]
[419072695,1774833046218,-348.31851728,0.00019729,60]
[419072697,1774833046229,-472.80041578,0.00019729,60]
[419072699,1774833046240,-677.92797756,0.00019729,60]
[419072701,1774833046251,-451.0,0.00019849,5]
[419072703,1774833046264,-483.693,0.00019926,2]
[419072706,1774833046276,-184.0,0.00019926,2]
[419072708,1774833046287,-360.01440058,0.00019996,2]
[419072710,1774833046299,-60068.0,0.0002,7]
[419072712,1774833046310,-151.0,0.0002,2]
[419072714,1774833046321,-151.0,0.0002,2]
[419072717,1774833046332,-157.594508,0.0002,2]
[419072719,1774833046343,-214.62725,0.0002,2]
[419072721,1774833046354,-214.62725,0.0002,2]
[419072723,1774833046365,-214.62725,0.0002,2]
[419072725,1774833046377,-214.62725,0.0002,2]
[419072728,1774833046388,-151.0,0.0002,2]
[419072730,1774833046399,-151.0,0.0002,2]
[419072732,1774833046411,-151.0,0.0002,2]
[419072734,1774833046422,-1015.38,0.0002,2]
[419072736,1774833046432,-151.62389485,0.0002,2]
[419072738,1774833046441,-296.37266461,0.00020061,2]
[419072740,1774833046451,-600.0,0.0002012,2]
[419072742,1774833046460,-348.31851728,0.00020152,60]
[419072744,1774833046469,-472.80041578,0.00020152,60]
[419072746,1774833046479,-677.92797756,0.00020152,60]
[419072763,1774833046625,-175.58927615,0.00020253,2]
[419072765,1774833046637,-1015.38,0.00020263,2]
[419072767,1774833046647,-15453.9253419,0.00020341,2]
[419072769,1774833046656,-24952.4059772,0.00020363,2]
[419072771,1774833046666,-14380.6678822,0.00020404,2]
[419072773,1774833046675,-217.3718385,0.00020426,2]
[419072775,1774833046685,-203.76691253,0.00020514,30]
[419072777,1774833046694,-215.54586856,0.00020514,60]
[419072779,1774833046703,-242.02099479,0.00020514,60]
[419072781,1774833046713,-1015.38,0.00020526,2]
[419072783,1774833046722,-348.31851728,0.00020575,60]
[419072785,1774833046731,-472.80041578,0.00020575,60]
[419072787,1774833046741,-677.92797756,0.00020575,60]
[419072789,1774833046750,-1015.38,0.00020789,2]
[419072791,1774833046760,-151.0,0.00020833,2]
[419072793,1774833046769,-261.021922,0.00020833,2]
[419072795,1774833046779,-151.0,0.00020833,2]
[419072797,1774833046788,-151.0,0.00020833,2]
[419072799,1774833046797,-151.0,0.00020833,2]
[419072801,1774833046806,-152.0,0.000209,2]
[419072803,1774833046815,-267.0,0.000209,2]
[419072805,1774833046825,-227.0,0.000209,2]
[419072807,1774833046834,-151.0,0.000209,2]
[419072809,1774833046843,-219.76703712,0.0002095,2]
[419072811,1774833046852,-348.31851728,0.00020998,60]
[419072812,1774833046861,-472.80041578,0.00020998,60]
[419072813,1774833046871,-677.92797756,0.00020998,60]
[419072814,1774833046880,-279.55669558,0.00021,2]
[419072815,1774833046889,-6000.0,0.00021,2]
[419072816,1774833046898,-2455.16209985,0.00021,2]